bitfinex/quotes_BTCUSD_20250314
["timestamp","ask_amount","ask_price","bid_price","bid_amount"]
[1741942509999,0.02317186,82808.0,82807.0,0.01554085]
[1741942510199,0.00051109,82808.0,82807.0,0.86655246]
[1741942510393,0.00051109,82808.0,82807.0,0.86855246]
[1741942510734,0.25410909,82808.0,82807.0,0.87255246]
[1741942511141,0.00051109,82808.0,82807.0,0.87255246]
[1741942511351,0.24203309,82808.0,82807.0,0.87255246]
[1741942511552,0.25410909,82808.0,82807.0,0.87255246]
[1741942511918,0.27304681,82808.0,82807.0,0.87255246]
[1741942512274,0.27304681,82808.0,82807.0,0.87938357]
[1741942512790,0.27304681,82808.0,82807.0,0.86484272]
[1741942513795,0.57304681,82808.0,82807.0,0.86484272]
[1741942513972,0.55410909,82808.0,82807.0,0.86484272]
[1741942514177,0.55410909,82808.0,82807.0,0.86184272]
[1741942514376,0.55410909,82808.0,82807.0,0.86284272]
[1741942514986,0.55410909,82808.0,82807.0,0.85884272]
[1741942515343,0.55410909,82808.0,82807.0,0.86084272]
[1741942515967,0.55410909,82808.0,82807.0,0.85884272]
[1741942516313,0.55410909,82808.0,82807.0,0.85984272]
[1741942516515,0.55410909,82808.0,82807.0,0.85884272]
[1741942516644,0.57304839,82808.0,82807.0,0.85984272]
[1741942519213,0.26389889,82808.0,82807.0,0.85984272]
[1741942519414,0.50542089,82808.0,82807.0,0.85984272]
[1741942520179,0.51749689,82808.0,82807.0,0.85984272]
[1741942520902,0.58036796,82808.0,82807.0,0.85984272]
[1741942521101,0.59599689,82808.0,82807.0,0.85984272]
[1741942522114,0.59599689,82808.0,82807.0,0.85884272]
[1741942522762,0.59599689,82808.0,82807.0,0.85784272]
[1741942523177,0.59699689,82808.0,82807.0,0.85784272]
[1741942523406,0.59599689,82808.0,82807.0,0.85784272]
[1741942523680,0.59699689,82808.0,82807.0,0.85784272]
[1741942526724,0.71695778,82808.0,82807.0,0.85784272]
[1741942526932,0.253684,82780.0,82779.0,0.0003384]
[1741942528317,0.253684,82780.0,82779.0,0.0007488]
[1741942528545,0.253684,82780.0,82779.0,0.0027488]
[1741942528941,0.241604,82780.0,82779.0,0.0027488]
[1741942529157,0.25292387,82780.0,82779.0,0.5951305]
[1741942529356,0.01131987,82780.0,82779.0,0.60377989]
[1741942529561,0.01131987,82780.0,82779.0,0.90416689]
[1741942529759,0.01131987,82780.0,82779.0,0.64568072]
[1741942530240,0.03026301,82780.0,82779.0,0.64768072]
[1741942530440,0.03026301,82780.0,82779.0,0.90136772]
[1741942530647,0.03026301,82780.0,82779.0,0.64568072]
[1741942531037,0.03026301,82780.0,82779.0,0.64668072]
[1741942531253,0.27186701,82780.0,82779.0,0.64668072]
[1741942531459,0.28394701,82780.0,82779.0,0.64668072]
[1741942532055,0.28394701,82780.0,82779.0,0.65299856]
[1741942532687,0.27186701,82780.0,82779.0,0.65299856]
[1741942532964,0.28394701,82780.0,82779.0,0.65299856]
[1741942535024,0.33604806,82780.0,82779.0,0.65299856]
[1741942535572,0.28394701,82780.0,82779.0,0.60729856]
[1741942538104,0.03026301,82780.0,82779.0,0.84890556]
[1741942538302,0.03026301,82780.0,82779.0,0.86098556]
[1741942539227,0.03026301,82780.0,82779.0,0.99058556]
[1741942539430,0.01131987,82780.0,82779.0,0.99058556]
[1741942539985,0.01131987,82780.0,82779.0,0.98958556]
[1741942540186,0.01131987,82780.0,82779.0,0.98858556]
[1741942540504,0.01131987,82780.0,82779.0,0.99758556]
[1741942541088,0.01131987,82780.0,82779.0,0.98550556]
[1741942541892,0.25292387,82780.0,82779.0,0.66209856]
[1741942542093,0.26500387,82780.0,82779.0,0.66209856]
[1741942542294,0.28394709,82780.0,82779.0,0.66209856]
[1741942542498,0.27186709,82780.0,82779.0,0.66209856]
[1741942542711,0.28394709,82780.0,82779.0,0.66209856]
[1741942543151,0.28394709,82780.0,82779.0,0.60929856]
[1741942543363,0.34635919,82780.0,82779.0,0.60529856]
[1741942543518,0.34635919,82780.0,82779.0,0.60829856]
[1741942544346,0.34635919,82780.0,82779.0,0.60729856]
[1741942544802,0.34635919,82780.0,82779.0,0.60829856]
[1741942545006,0.35767499,82780.0,82779.0,0.60629856]
[1741942545265,0.35767499,82780.0,82779.0,0.60829856]
[1741942547000,0.35767499,82780.0,82779.0,0.61301856]
[1741942549151,0.34635919,82780.0,82779.0,0.61301856]
[1741942549489,0.32741597,82780.0,82779.0,0.61301856]
[1741942551357,0.32741597,82780.0,82779.0,0.02063686]
[1741942551703,0.32741597,82780.0,82779.0,0.0084688]
[1741942552342,0.34636047,82780.0,82779.0,0.0084688]
[1741942553181,0.35768617,82780.0,82779.0,0.0084688]
[1741942553480,0.65768617,82780.0,82779.0,0.0084688]
[1741942554108,0.64636047,82780.0,82779.0,0.0084688]
[1741942554486,0.64636047,82780.0,82779.0,0.0074688]
[1741942555069,0.64636047,82780.0,82779.0,0.0054688]
[1741942555394,0.64636047,82780.0,82779.0,0.5978505]
[1741942555563,0.64636047,82780.0,82779.0,0.60139475]
[1741942556075,0.65769128,82780.0,82779.0,0.60139475]
[1741942557115,0.64636047,82780.0,82779.0,0.60139475]
[1741942563525,0.64636047,82780.0,82779.0,0.60173315]
[1741942566501,0.65769024,82780.0,82779.0,0.60173315]
[1741942566700,0.65769024,82780.0,82779.0,0.56387304]
[1741942568062,0.64636047,82780.0,82779.0,0.01247793]
[1741942568548,0.64636047,82780.0,82779.0,0.0003384]
[1741942569173,0.59528726,82780.0,82779.0,0.0003384]
[1741942570281,0.5726285,82780.0,82779.0,0.0003384]
[1741942570482,0.5726285,82780.0,82779.0,0.0455384]
[1741942570913,0.0189445,82780.0,82779.0,0.0455384]
[1741942571045,0.0189445,82780.0,82779.0,0.60913964]
[1741942571247,0.241604,82780.0,82779.0,0.60913964]
[1741942572061,0.241594,82784.0,82780.0,0.241604]
[1741942572293,0.241595,82783.0,82780.0,0.241604]
[1741942572542,0.241595,82783.0,82781.0,0.08840142]
[1741942572797,0.241598,82782.0,82781.0,0.08840142]
[1741942573033,0.241595,82783.0,82781.0,0.08840142]
[1741942573266,0.241598,82782.0,82781.0,0.08840142]
[1741942573494,0.01133539,82782.0,82781.0,0.08840142]
[1741942573972,0.25293339,82782.0,82781.0,0.08840142]
[1741942574186,0.27187763,82782.0,82781.0,0.08840142]
[1741942574884,0.27187763,82782.0,82781.0,0.08940142]
[1741942575123,0.28395663,82782.0,82781.0,0.08940142]
[1741942575626,0.253677,82782.0,82781.0,0.08940142]
[1741942576080,0.3563532,82782.0,82781.0,0.08940142]
[1741942576834,0.253677,82782.0,82781.0,0.08940142]
[1741942578170,0.27634517,82782.0,82781.0,0.08940142]
[1741942578398,0.29528954,82782.0,82781.0,0.08940142]
[1741942578623,0.27262137,82782.0,82781.0,0.08940142]
[1741942579075,0.29528929,82782.0,82781.0,0.08940142]
[1741942579562,0.31224798,82782.0,82781.0,0.08940142]
[1741942580015,0.31224798,82782.0,82781.0,0.01320142]
[1741942581629,0.07064998,82782.0,82781.0,0.01320142]
[1741942581855,0.29528929,82782.0,82781.0,0.01320142]
[1741942582773,0.04161229,82782.0,82781.0,0.01320142]
[1741942583052,0.29528929,82782.0,82781.0,0.01320142]
[1741942583749,0.27262137,82782.0,82781.0,0.01320142]
[1741942587015,0.01894437,82782.0,82781.0,0.01320142]
[1741942587225,0.01894437,82782.0,82781.0,0.09120142]
[1741942587426,0.27262137,82782.0,82781.0,0.09120142]
[1741942587798,0.27279057,82782.0,82781.0,0.09120142]
[1741942590270,0.27279057,82782.0,82781.0,0.09118324]
[1741942590644,0.27279057,82782.0,82781.0,0.079]
[1741942590850,0.27279057,82782.0,82781.0,0.001]
[1741942591231,0.37057431,82782.0,82781.0,0.001]
[1741942591434,0.27279057,82782.0,82781.0,0.001]
[1741942593976,0.27279057,82782.0,82781.0,0.55239511]
[1741942594414,0.27279057,82782.0,82781.0,0.56458185]
[1741942599739,0.27279057,82782.0,82781.0,0.01318674]
[1741942600159,0.27279057,82782.0,82781.0,0.001]
[1741942600300,0.27279057,82782.0,82781.0,0.01117389]
[1741942600506,0.27279057,82782.0,82781.0,0.001]
[1741942600707,0.27279057,82782.0,82781.0,0.01151229]
[1741942600901,0.27279057,82782.0,82781.0,0.0013384]
[1741942601107,0.27279057,82782.0,82781.0,0.01151229]
[1741942601308,0.27279057,82782.0,82781.0,0.0013384]
[1741942601591,0.27279057,82782.0,82781.0,0.01151229]
[1741942601716,0.27279057,82782.0,82781.0,0.55273351]
[1741942601948,0.27279057,82782.0,82781.0,0.5629074]
[1741942606504,0.57279057,82782.0,82781.0,0.5629074]
[1741942606912,0.5538462,82782.0,82781.0,0.5629074]
[1741942607473,0.6905262,82782.0,82781.0,0.5619074]
[1741942608699,0.75543733,82782.0,82781.0,0.5619074]
[1741942608903,0.6888262,82782.0,82781.0,0.5619074]
[1741942609153,0.42074365,82782.0,82781.0,0.5619074]
[1741942609361,0.66234165,82782.0,82781.0,0.5619074]
[1741942609566,0.68128696,82782.0,82781.0,0.5619074]
[1741942609986,0.69336596,82782.0,82781.0,0.5619074]
[1741942613395,0.69353516,82782.0,82781.0,0.01051229]
[1741942613915,0.69353516,82782.0,82781.0,0.0003384]
[1741942616858,0.69353516,82782.0,82781.0,0.0028184]
[1741942618236,0.69353516,82782.0,82781.0,0.55421351]
[1741942618440,0.69353516,82782.0,82781.0,0.56441131]
[1741942618845,0.69353516,82782.0,82781.0,0.0130162]
[1741942619077,0.69353516,82782.0,82781.0,0.0028184]
[1741942620238,0.81349605,82782.0,82781.0,0.0028184]
[1741942620871,0.69353516,82782.0,82781.0,0.0028184]
[1741942624053,0.69353516,82782.0,82781.0,0.55421351]
[1741942624250,0.69353516,82782.0,82781.0,0.56440498]
[1741942630555,0.69353516,82782.0,82781.0,0.01300987]
[1741942630960,0.69353516,82782.0,82781.0,0.0028184]
[1741942633354,0.69353516,82782.0,82781.0,0.55421351]
[1741942633555,0.55685516,82782.0,82781.0,0.55421351]
[1741942633752,0.02011451,82782.0,82781.0,0.70458033]
[1741942633959,0.02011451,82782.0,82781.0,0.94618133]
[1741942634175,0.0011692,82782.0,82781.0,0.94618133]
[1741942634423,0.0011692,82782.0,82781.0,0.69250033]
[1741942634632,0.0001692,82782.0,82781.0,0.93410133]
[1741942634838,0.0011692,82782.0,82781.0,0.93410133]
[1741942635256,0.0001692,82782.0,82781.0,0.93410133]
[1741942635618,0.0001692,82782.0,82781.0,0.94618133]
[1741942637316,0.01911294,82782.0,82781.0,0.94618133]
[1741942641031,0.01911294,82782.0,82781.0,0.93410133]
[1741942641227,0.01911294,82782.0,82781.0,0.69250033]
[1741942641431,0.01911294,82782.0,82781.0,0.93410133]
[1741942641636,0.01911294,82782.0,82781.0,0.93610133]
[1741942642192,0.01911294,82782.0,82781.0,0.93810133]
[1741942642365,0.01911294,82782.0,82781.0,0.69650033]
[1741942642571,0.01911294,82782.0,82781.0,0.93810133]
[1741942642978,0.01911294,82782.0,82781.0,0.38670622]
[1741942643125,0.01911294,82782.0,82781.0,0.14510522]
[1741942643323,0.01911294,82782.0,82781.0,0.402455]
[1741942643536,0.0001692,82808.0,82803.0,0.253613]
[1741942643753,0.0001692,82808.0,82803.0,0.92840811]
[1741942643963,0.0001692,82808.0,82803.0,0.93897443]
[1741942644790,0.0011692,82804.0,82803.0,0.93897443]
[1741942644989,0.0001692,82804.0,82803.0,0.93897443]
[1741942645557,0.0001692,82804.0,82803.0,0.93997443]
[1741942646716,0.0001692,82804.0,82803.0,0.94097443]
[1741942648779,0.0001692,82804.0,82803.0,0.93997443]
[1741942648987,0.0001692,82804.0,82803.0,0.94297443]
[1741942649383,0.0001692,82804.0,82803.0,0.94197443]
[1741942649610,0.0001692,82804.0,82803.0,0.94297443]
[1741942650604,0.0001692,82804.0,82803.0,0.94197443]
[1741942651993,0.0001692,82804.0,82803.0,0.94597443]
[1741942652162,0.02382168,82824.0,82823.0,0.241478]
[1741942652411,0.000169,82829.0,82828.0,0.241464]
[1741942652616,0.00935287,82829.0,82828.0,0.253537]
[1741942652807,0.000169,82829.0,82828.0,0.26402982]
[1741942652989,0.01910378,82829.0,82828.0,0.26402982]
[1741942653372,0.01951443,82829.0,82828.0,0.30628761]
[1741942653536,0.03929364,82829.0,82828.0,0.34102982]
[1741942653742,0.01951443,82829.0,82828.0,0.34102982]
[1741942654352,0.01951443,82829.0,82828.0,0.34402982]
[1741942655023,0.0397979,82829.0,82828.0,0.34402982]
[1741942655381,0.02086312,82829.0,82828.0,0.34402982]
[1741942655623,0.00057965,82829.0,82828.0,0.39022982]
[1741942655831,0.02066545,82829.0,82828.0,0.13669282]
[1741942655987,0.26212645,82829.0,82828.0,0.13669282]
[1741942656203,0.02066545,82829.0,82828.0,0.13669282]
[1741942656425,0.02066545,82829.0,82828.0,0.39222982]
[1741942656629,0.02066545,82829.0,82828.0,0.38722982]
[1741942656836,0.02066545,82829.0,82828.0,0.39122982]
[1741942657169,0.02066545,82829.0,82828.0,0.39222982]
[1741942657411,0.02066545,82829.0,82828.0,0.38822982]
[1741942657557,0.02066545,82829.0,82828.0,0.37815682]
[1741942657876,0.02066545,82829.0,82828.0,0.13669282]
[1741942659888,0.03959996,82829.0,82828.0,0.13669282]
[1741942661632,0.10875197,82830.0,82828.0,0.13669282]
[1741942661835,0.10887506,82830.0,82828.0,0.13669282]
[1741942662416,0.02027416,82830.0,82828.0,0.37715582]
[1741942662623,0.02027416,82830.0,82829.0,0.241461]
[1741942662824,0.00012309,82830.0,82829.0,0.253534]
[1741942663197,0.00012309,82830.0,82829.0,0.26388291]
[1741942663917,0.00012309,82830.0,82829.0,0.26488291]
[1741942664121,0.00012309,82830.0,82829.0,0.26688291]
[1741942665356,0.00012309,82830.0,82829.0,0.01334891]
[1741942665612,0.24158109,82830.0,82829.0,0.01334891]
[1741942667011,0.25285709,82830.0,82829.0,0.01334891]
[1741942667163,0.26492909,82830.0,82829.0,0.56474402]
[1741942667559,0.2874811,82830.0,82829.0,0.56474402]
[1741942667633,0.39786891,82830.0,82829.0,0.56474402]
[1741942668710,0.2874811,82830.0,82829.0,0.56474402]
[1741942669084,0.2874811,82830.0,82829.0,0.56174402]
[1741942669889,0.0339511,82830.0,82829.0,0.81527802]
[1741942670183,0.0339511,82830.0,82829.0,0.56174402]
[1741942670349,0.2754091,82830.0,82829.0,0.56174402]
[1741942670551,0.2874811,82830.0,82829.0,0.56174402]
[1741942672201,0.2874811,82830.0,82829.0,0.56208222]
[1741942674871,0.2754091,82830.0,82829.0,0.56208222]
[1741942675070,0.0339511,82830.0,82829.0,0.85064322]
[1741942675435,0.0339511,82830.0,82829.0,0.60918222]
[1741942675793,0.0339511,82830.0,82829.0,0.62125522]
[1741942676095,0.0339511,82830.0,82829.0,0.94141622]
[1741942677151,0.0339511,82830.0,82829.0,0.94541622]
[1741942677357,0.01139909,82830.0,82829.0,0.94541622]
[1741942677617,0.01139909,82830.0,82829.0,0.94841622]
[1741942679215,0.25285709,82830.0,82829.0,0.69488222]
[1741942679419,0.26492909,82830.0,82829.0,0.56908222]
[1741942680195,0.26492909,82830.0,82829.0,0.56508222]
[1741942680434,0.26492909,82830.0,82829.0,0.56608222]
[1741942681268,0.26492909,82830.0,82829.0,0.56308222]
[1741942681850,0.26492909,82830.0,82829.0,0.56208222]
[1741942682044,0.26492909,82830.0,82829.0,0.56308222]
[1741942682777,0.26492909,82830.0,82829.0,0.53386239]
[1741942682957,0.37304117,82830.0,82829.0,0.53386239]
[1741942683199,0.75274117,82830.0,82829.0,0.53386239]
[1741942683779,0.7764127,82830.0,82829.0,0.53386239]
[1741942683924,0.7651367,82830.0,82829.0,0.53386239]
[1741942684132,0.65702462,82830.0,82829.0,0.53386239]
[1741942684331,0.57732462,82830.0,82829.0,0.53386239]
[1741942684781,0.57732462,82830.0,82829.0,0.53286239]
[1741942685597,0.57749372,82830.0,82829.0,0.53286239]
[1741942687912,0.59642988,82830.0,82829.0,0.53286239]
[1741942688119,0.71639077,82830.0,82829.0,0.53286239]
[1741942689636,0.71639077,82830.0,82829.0,0.43286239]
[1741942690227,0.71639077,82830.0,82829.0,0.00895053]
[1741942690584,0.59642988,82830.0,82829.0,0.0003382]
[1741942695274,0.59642988,82830.0,82829.0,0.42425006]
[1741942695718,0.59642988,82830.0,82829.0,0.43288691]
[1741942697744,0.70927835,82830.0,82829.0,0.43288691]
[1741942698335,0.57275835,82830.0,82829.0,0.43288691]
[1741942699042,0.69271924,82830.0,82829.0,0.43288691]
[1741942700789,0.69271924,82830.0,82829.0,0.00897505]
[1741942701190,0.69271924,82830.0,82829.0,0.0003382]
[1741942704407,0.69271924,82830.0,82829.0,0.42425006]
[1741942704866,0.69271924,82830.0,82829.0,0.43290082]
[1741942708789,0.57275835,82830.0,82829.0,0.43290082]
[1741942710279,0.57275835,82830.0,82829.0,0.39506332]
[1741942711853,0.58409329,82830.0,82829.0,0.39506332]
[1741942712219,0.58369978,82830.0,82829.0,0.39506332]
[1741942713252,0.57236484,82830.0,82829.0,0.39506332]
[1741942713452,0.65365276,82830.0,82829.0,0.39506332]
[1741942715432,0.65365276,82830.0,82829.0,0.36246162]
[1741942715641,6.43057376,82830.0,82829.0,0.36246162]
[1741942716017,6.42298433,82830.0,82829.0,0.35381086]
[1741942716961,6.51358674,82830.0,82829.0,0.35381086]
[1741942717595,6.54759156,82830.0,82829.0,0.35381086]
[1741942717809,5.50887056,82830.0,82829.0,0.35381086]
[1741942718009,5.09246815,82830.0,82829.0,0.35381086]
[1741942718538,3.43398023,82830.0,82829.0,0.35381086]
[1741942719111,3.41891189,82830.0,82829.0,0.35381086]
[1741942720328,0.85991189,82830.0,82829.0,0.35381086]
[1741942720660,0.84441189,82830.0,82829.0,0.35381086]
[1741942720860,0.68501189,82830.0,82829.0,0.31630772]
[1741942721272,0.80497278,82830.0,82829.0,0.32499688]
[1741942721793,0.80497278,82830.0,82829.0,0.31630772]
[1741942723108,0.79362605,82830.0,82829.0,0.31630772]
[1741942726027,0.79362605,82830.0,82829.0,0.27997783]
[1741942726225,0.69232605,82830.0,82829.0,0.27997783]
[1741942726429,6.46924705,82830.0,82829.0,0.24364794]
[1741942726829,4.24742605,82830.0,82829.0,0.20731805]
[1741942728981,4.12746516,82830.0,82829.0,0.20731805]
[1741942729304,1.31056516,82830.0,82829.0,0.20731805]
[1741942729649,1.23466516,82830.0,82829.0,0.20731805]
[1741942729776,1.04606516,82830.0,82829.0,0.20731805]
[1741942731773,0.99176516,82830.0,82829.0,0.20731805]
[1741942731971,1.11172605,82830.0,82829.0,0.20731805]
[1741942732380,0.85846647,82830.0,82829.0,0.20731805]
[1741942732737,1.09992447,82830.0,82829.0,0.20765625]
[1741942733267,1.11199647,82830.0,82829.0,0.20765625]
[1741942733919,0.99203558,82830.0,82829.0,0.20765625]
[1741942735435,0.96613558,82830.0,82829.0,0.20765625]
[1741942735639,1.10261558,82830.0,82829.0,0.20765625]
[1741942737512,0.70911558,82830.0,82829.0,0.25645625]
[1741942738458,0.70911558,82830.0,82829.0,0.33645625]
[1741942738841,0.70911558,82830.0,82829.0,0.34515173]
[1741942739641,0.57263558,82830.0,82829.0,0.34515173]
[1741942739848,0.70911558,82830.0,82829.0,0.24515173]
[1741942740245,0.70911558,82830.0,82829.0,0.23645625]
[1741942740446,0.57263558,82830.0,82829.0,0.23645625]
[1741942740804,0.69259647,82830.0,82829.0,0.23645625]
[1741942741002,0.69259647,82830.0,82829.0,0.15645625]
[1741942741292,0.69259647,82830.0,82829.0,0.10765625]
[1741942741489,0.69259647,82830.0,82829.0,0.0003382]
[1741942741924,6.46951747,82830.0,82829.0,0.0003382]
[1741942742101,6.46951747,82830.0,82829.0,0.10765625]
[1741942742491,0.012075,82810.0,82809.0,0.0485]
[1741942742675,0.253591,82810.0,82809.0,0.0485]
[1741942742924,0.253591,82810.0,82809.0,0.05784871]
[1741942743082,0.253591,82810.0,82809.0,0.1302]
[1741942744165,0.241508,82813.0,82807.0,0.241525]
[1741942744337,0.012075,82813.0,82811.0,0.075]
[1741942744567,0.253585,82812.0,82811.0,0.075]
[1741942746667,0.253585,82812.0,82811.0,0.076]
[1741942747097,0.37144502,82812.0,82811.0,0.076]
[1741942748945,0.253585,82812.0,82811.0,0.076]
[1741942754788,0.253585,82812.0,82811.0,0.076]
[1741942755213,0.01893722,82813.0,82812.0,0.049]
[1741942755380,0.27251922,82813.0,82812.0,0.049]
[1741942755582,0.253582,82813.0,82812.0,0.05836817]
[1741942755792,0.253582,82813.0,82812.0,0.049]
[1741942756429,0.253582,82813.0,82812.0,0.05]
[1741942758322,0.27251917,82813.0,82812.0,0.05]
[1741942759287,0.37672888,82813.0,82812.0,0.05]
[1741942760270,0.37672888,82813.0,82812.0,0.001]
[1741942760626,0.81320888,82813.0,82812.0,0.001]
[1741942761853,0.553585,82812.0,82811.0,0.0003382]
[1741942763062,0.555585,82812.0,82811.0,0.0003382]
[1741942763505,0.553585,82812.0,82811.0,0.0003382]
[1741942764801,6.330506,82812.0,82811.0,0.0003382]
[1741942767856,6.41365472,82812.0,82811.0,0.0003382]
[1741942768002,0.253607,82805.0,82804.0,0.00889155]
[1741942769094,0.25361,82804.0,82803.0,0.0003384]
[1741942769502,0.3561162,82804.0,82803.0,0.0003384]
[1741942769763,0.37505565,82804.0,82803.0,0.0003384]
[1741942769969,0.27254945,82804.0,82803.0,0.0003384]
[1741942770673,0.04161349,82804.0,82803.0,0.0761384]
[1741942770872,0.28314749,82804.0,82803.0,0.1212384]
[1741942771111,0.29522349,82804.0,82803.0,0.13065633]
[1741942771488,0.37667824,82804.0,82803.0,0.13065633]
[1741942771688,0.37667824,82804.0,82803.0,0.1212384]
[1741942772666,0.38801383,82804.0,82803.0,0.1212384]
[1741942774975,0.68801383,82804.0,82803.0,0.1212384]
[1741942775351,0.60655908,82804.0,82803.0,0.1212384]
[1741942775811,0.30655908,82804.0,82803.0,0.1212384]
[1741942778902,0.30655908,82804.0,82803.0,0.08339115]
[1741942779764,0.29448308,82804.0,82803.0,0.08339115]
[1741942779940,0.05294908,82804.0,82803.0,0.08339115]
[1741942780171,0.30655908,82804.0,82803.0,0.09282918]
[1741942780541,0.30655908,82804.0,82803.0,0.09316758]
[1741942780778,0.29539269,82804.0,82803.0,0.09316758]
[1741942781190,0.29539269,82804.0,82803.0,0.08372955]
[1741942781574,0.36649226,82804.0,82803.0,0.08372955]
[1741942781767,0.29539269,82804.0,82803.0,0.08372955]
[1741942784573,0.27271865,82804.0,82803.0,0.08372955]
[1741942794991,0.27271865,82804.0,82803.0,0.0454384]
[1741942795170,0.27271865,82804.0,82803.0,0.0003384]
[1741942796723,0.39267954,82804.0,82803.0,0.0003384]
[1741942796909,0.69267954,82804.0,82803.0,0.0003384]
[1741942797560,0.57271865,82804.0,82803.0,0.0003384]
[1741942798344,0.01910865,82804.0,82803.0,0.1247384]
[1741942798547,0.01910865,82804.0,82803.0,0.3662754]
[1741942798773,0.01910865,82804.0,82803.0,0.3757073]
[1741942799147,0.01910865,82804.0,82803.0,0.3877833]
[1741942800620,0.0001692,82804.0,82803.0,0.3877833]
[1741942801383,0.0001692,82804.0,82803.0,0.3887833]
[1741942801880,0.0001692,82804.0,82803.0,0.3757073]
[1741942802274,0.0001692,82804.0,82803.0,0.3877833]
[1741942802654,0.0001692,82804.0,82803.0,0.3897833]
[1741942803177,0.0001692,82804.0,82803.0,0.1361703]
[1741942803378,0.0001692,82804.0,82803.0,0.3777073]
[1741942803730,0.0001692,82804.0,82803.0,0.3897833]
[1741942804677,0.241511,82812.0,82809.0,0.241516]
[1741942804880,0.07829797,82813.0,82809.0,0.31733909]
[1741942805235,0.012074,82820.0,82811.0,0.012075]
[1741942805439,0.241499,82816.0,82812.0,0.0487]
[1741942805641,0.553572,82817.0,82813.0,0.241507]
[1741942805867,0.3,82817.0,82813.0,0.012075]
[1741942806181,0.03232027,82831.0,82824.0,0.012073]
[1741942806398,0.3001691,82830.0,82828.0,0.288964]
[1741942806572,0.3001691,82830.0,82828.0,0.301037]
[1741942806728,0.3001691,82830.0,82828.0,0.0475]
[1741942807136,0.3001691,82829.0,82828.0,0.0475]
[1741942807770,0.5416301,82829.0,82828.0,0.0475]
[1741942808431,0.56056477,82829.0,82828.0,0.0475]
[1741942808640,0.57263777,82829.0,82828.0,0.0475]
[1741942809262,0.56056477,82829.0,82828.0,0.0475]
[1741942809546,0.32010377,82829.0,82828.0,0.301037]
[1741942809762,0.01993467,82829.0,82828.0,0.288964]
[1741942809965,0.01993467,82829.0,82828.0,0.301037]
[1741942810198,0.01993467,82829.0,82828.0,0.0475]
[1741942810391,0.26039567,82829.0,82828.0,0.0475]
[1741942810810,0.01893467,82829.0,82828.0,0.0475]
[1741942811025,0.01893467,82829.0,82828.0,0.288964]
[1741942811218,0.01893467,82829.0,82828.0,0.0475]
[1741942811436,0.01893467,82829.0,82828.0,0.288964]
[1741942811672,0.01893467,82829.0,82828.0,0.301037]
[1741942811877,0.01993467,82829.0,82828.0,0.301037]
[1741942812288,0.01893467,82829.0,82828.0,0.301037]
[1741942812477,0.01893467,82829.0,82828.0,0.383837]
[1741942812822,0.01893467,82829.0,82828.0,0.384837]
[1741942813219,0.01893467,82829.0,82828.0,0.374764]
[1741942813494,0.01893467,82829.0,82828.0,0.385837]
[1741942813830,0.01893467,82829.0,82828.0,0.376764]
[1741942815233,0.01893467,82829.0,82828.0,0.388837]
[1741942817349,0.01910397,82829.0,82828.0,0.388837]
[1741942817749,0.01910397,82829.0,82828.0,0.39812248]
[1741942819080,0.0001693,82829.0,82828.0,0.39812248]
[1741942819889,0.241414,82845.0,82840.0,0.241427]
[1741942820087,0.241411,82848.0,82841.0,0.0791]
[1741942820300,0.0001692,82849.0,82845.0,0.01207]
[1741942820500,0.0001692,82849.0,82848.0,0.241405]
[1741942820725,0.0001692,82849.0,82846.0,0.25064447]
[1741942820726,0.02060223,82849.0,82846.0,0.25064447]
[1741942820923,0.02060223,82849.0,82848.0,0.00923077]
[1741942821135,0.02060223,82849.0,82847.0,0.241407]
[1741942821136,0.02060223,82849.0,82847.0,0.25064012]
[1741942821335,0.02060223,82849.0,82848.0,0.00923077]
[1741942821943,0.02060223,82849.0,82848.0,0.26270577]
[1741942822158,0.03953161,82849.0,82848.0,0.26270577]
[1741942822363,0.03953161,82849.0,82848.0,0.24563577]
[1741942822565,0.03953161,82849.0,82848.0,0.26187243]
[1741942822737,0.03953161,82849.0,82848.0,0.34297243]
[1741942822939,0.03953161,82849.0,82848.0,0.34597243]
[1741942824047,0.01909858,82849.0,82848.0,0.34597243]
[1741942825271,0.01909858,82849.0,82848.0,0.34397243]
[1741942825682,0.01909858,82849.0,82848.0,0.34597243]
[1741942826107,0.01909858,82849.0,82848.0,0.39467243]
[1741942826307,0.0001692,82849.0,82848.0,0.39267243]
[1741942826548,0.0001692,82849.0,82848.0,0.39767243]
[1741942827093,0.0001692,82849.0,82848.0,0.39567243]
[1741942827298,0.0001692,82849.0,82848.0,0.40167243]
[1741942827900,0.0001692,82849.0,82848.0,0.39767243]
[1741942828295,0.2415722,82849.0,82848.0,0.06809743]
[1741942828467,0.2536422,82849.0,82848.0,0.01939743]
[1741942828670,0.2536422,82849.0,82848.0,0.011]
[1741942829285,0.27257189,82849.0,82848.0,0.011]
[1741942829500,0.27257189,82849.0,82848.0,0.005]
[1741942829705,0.27257189,82849.0,82848.0,0.006]
[1741942829706,0.01909889,82849.0,82848.0,0.006]
[1741942830013,0.26050189,82849.0,82848.0,0.006]
[1741942830135,0.241407,82848.0,82844.0,0.241417]
[1741942830358,0.01909889,82849.0,82846.0,0.24141]
[1741942830710,0.241406,82848.0,82845.0,0.241413]
[1741942831591,0.26050289,82849.0,82846.0,0.241411]
[1741942831999,0.241406,82848.0,82845.0,0.241413]
[1741942832169,0.26050289,82849.0,82845.0,0.241413]
[1741942832382,0.01909889,82849.0,82848.0,0.253475]
[1741942832585,0.01909889,82849.0,82845.0,0.01207]
[1741942832796,0.26050189,82849.0,82846.0,0.241411]
[1741942833006,0.012069,82851.0,82847.0,0.241408]
[1741942833213,0.3,82853.0,82846.0,0.253481]
[1741942833435,0.241402,82850.0,82847.0,0.241407]
[1741942833658,0.01207,82848.0,82840.0,0.012071]
[1741942833870,0.241414,82846.0,82841.0,0.01327797]
[1741942834071,0.240914,82846.0,82842.0,0.24142]
[1741942834276,0.0225939,82845.0,82843.0,0.241418]
[1741942834476,0.0225939,82845.0,82844.0,0.241416]
[1741942834690,0.0225939,82845.0,82844.0,0.253486]
[1741942834981,0.0225939,82845.0,82844.0,0.336086]
[1741942836192,0.0225939,82845.0,82844.0,0.324016]
[1741942836397,0.0225939,82845.0,82844.0,0.0826]
[1741942837144,0.2640079,82845.0,82844.0,0.0846]
[1741942837545,0.33725457,82845.0,82844.0,0.002]
[1741942837927,0.35618397,82845.0,82844.0,0.002]
[1741942838315,0.35618397,82845.0,82844.0,0.005]
[1741942838742,0.36518621,82845.0,82844.0,0.005]
[1741942839549,0.253534,82829.0,82828.0,0.0003384]
[1741942840341,0.27246676,82829.0,82828.0,0.0003384]
[1741942841056,0.27246676,82829.0,82828.0,0.0023384]
[1741942841287,0.29506066,82829.0,82828.0,0.01115754]
[1741942841712,0.29506066,82829.0,82828.0,0.0023384]
[1741942841946,0.29506066,82829.0,82828.0,0.0053384]
[1741942842145,0.39941743,82829.0,82828.0,0.0053384]
[1741942842503,0.29506066,82829.0,82828.0,0.0053384]